[Event "*** SCC Grand Prix: Titled Tuesday Blitz"]
[Site "Chess.com"]
[Date "2020.07.14"]
[Round "4"]
[White "SuperMagnum"]
[Black "Canonkasparov"]
[Result "0-1"]
[WhiteElo "2172"]
[BlackElo "2559"]
[TimeControl "180+1"]
[EndTime "10:40:49 PDT"]
[Termination "Canonkasparov won by resignation"]

1. e4 {[%clk 0:02:59.5]} 1... d5 {[%clk 0:02:58.7]} 2. exd5 {[%clk 0:02:59.5]}
2... Qxd5 {[%clk 0:02:58.9]} 3. Nc3 {[%clk 0:03:00.4]} 3... Qa5 {[%clk
0:02:58.8]} 4. d4 {[%clk 0:03:01.3]} 4... Nf6 {[%clk 0:02:58.8]} 5. Nf3 {[%clk
0:03:00]} 5... c6 {[%clk 0:02:58.1]} 6. Bd2 {[%clk 0:02:57]} 6... Qb6 {[%clk
0:02:56.3]} 7. Rb1 {[%clk 0:02:50.7]} 7... Bf5 {[%clk 0:02:53.8]} 8. Bc4 {[%clk
0:02:48.7]} 8... e6 {[%clk 0:02:52.6]} 9. O-O {[%clk 0:02:47.8]} 9... Nbd7
{[%clk 0:02:50.7]} 10. Re1 {[%clk 0:02:43.8]} 10... Bd6 {[%clk 0:02:49.2]} 11.
h3 {[%clk 0:02:42.6]} 11... h6 {[%clk 0:02:47.4]} 12. Ne5 {[%clk 0:02:37.3]}
12... Qxd4 {[%clk 0:02:39.9]} 13. Nxd7 {[%clk 0:02:32.8]} 13... Qxc4 {[%clk
0:02:12]} 14. Nxf6+ {[%clk 0:02:29.5]} 14... gxf6 {[%clk 0:02:11.8]} 15. b3
{[%clk 0:02:29]} 15... Qa6 {[%clk 0:01:59.6]} 16. Bxh6 {[%clk 0:02:24.7]} 16...
O-O-O {[%clk 0:01:54.7]} 17. Bg7 {[%clk 0:02:12.3]} 17... Bh2+ {[%clk
0:01:49.4]} 18. Kxh2 {[%clk 0:02:09.6]} 18... Rxd1 {[%clk 0:01:49.5]} 19. Rbxd1
{[%clk 0:02:00.8]} 19... Rg8 {[%clk 0:01:48]} 20. Bxf6 {[%clk 0:01:41.5]} 20...
Bxc2 {[%clk 0:01:43]} 21. Rd2 {[%clk 0:01:37.9]} 21... Bf5 {[%clk 0:01:38.3]}
22. Red1 {[%clk 0:01:34.1]} 22... e5 {[%clk 0:01:30.6]} 23. Bxe5 {[%clk
0:01:25.1]} 23... Qa5 {[%clk 0:01:24.3]} 24. Bf6 {[%clk 0:01:15.1]} 24... Qb4
{[%clk 0:00:57.9]} 25. Rd4 {[%clk 0:00:52.7]} 25... Qc5 {[%clk 0:00:46.5]} 26.
Na4 {[%clk 0:00:48.4]} 26... Qc2 {[%clk 0:00:34]} 27. R1d2 {[%clk 0:00:42.4]}
27... Qc1 {[%clk 0:00:24.5]} 28. Rd1 {[%clk 0:00:36.5]} 28... Qh6 {[%clk
0:00:21.6]} 29. Bh4 {[%clk 0:00:28.6]} 29... Be6 {[%clk 0:00:13.2]} 30. Nc5
{[%clk 0:00:24.7]} 30... Bf5 {[%clk 0:00:12.1]} 31. Bg3 {[%clk 0:00:14.5]} 31...
b6 {[%clk 0:00:09.9]} 32. Na6 {[%clk 0:00:12.9]} 32... Kb7 {[%clk 0:00:09.6]}
33. Nc7 {[%clk 0:00:10.1]} 33... a5 {[%clk 0:00:08.2]} 34. Rf4 {[%clk
0:00:04.6]} 34... Bg6 {[%clk 0:00:07]} 35. Rf6 {[%clk 0:00:02.9]} 35... Qg5
{[%clk 0:00:06.6]} 36. Rf4 {[%clk 0:00:02.4]} 36... Rc8 {[%clk 0:00:06.4]} 37.
Rg4 {[%clk 0:00:02.6]} 37... Qf5 {[%clk 0:00:06.5]} 38. Rf4 {[%clk 0:00:02.6]}
38... Qc2 {[%clk 0:00:05.9]} 39. Rfd4 {[%clk 0:00:02.3]} 39... Rxc7 {[%clk
0:00:06.3]} 40. Bxc7 {[%clk 0:00:02.9]} 40... Kxc7 {[%clk 0:00:07.2]} 41. Rd7+
{[%clk 0:00:03.6]} 41... Kc8 {[%clk 0:00:07.8]} 42. Rd8+ {[%clk 0:00:03.5]}
42... Kb7 {[%clk 0:00:08.6]} 43. R8d7+ {[%clk 0:00:01.8]} 43... Ka6 {[%clk
0:00:08.4]} 44. R7d2 {[%clk 0:00:02.7]} 44... Qc5 {[%clk 0:00:08.4]} 45. Rd6
{[%clk 0:00:02.4]} 45... Qe5+ {[%clk 0:00:08.8]} 46. Kg1 {[%clk 0:00:02.4]}
46... a4 {[%clk 0:00:09.2]} 47. Rxc6 {[%clk 0:00:02.5]} 47... axb3 {[%clk
0:00:09]} 48. axb3 {[%clk 0:00:03.1]} 48... Be4 {[%clk 0:00:09]} 49. Rc2 {[%clk
0:00:02.3]} 49... Bxc2 {[%clk 0:00:09]} 50. Rc1 {[%clk 0:00:02.4]} 50... Qb2
{[%clk 0:00:08.9]} 51. Re1 {[%clk 0:00:02.4]} 51... Qc3 {[%clk 0:00:09]} 52. Re3
{[%clk 0:00:02.9]} 52... Qd2 {[%clk 0:00:08.9]} 53. h4 {[%clk 0:00:02.4]} 53...
b5 {[%clk 0:00:09.2]} 54. h5 {[%clk 0:00:02.6]} 54... Qd6 {[%clk 0:00:09.1]} 55.
Rh3 {[%clk 0:00:02.2]} 55... Bh7 {[%clk 0:00:08.9]} 56. g4 {[%clk 0:00:02.4]}
56... Qf4 {[%clk 0:00:08.9]} 57. Rg3 {[%clk 0:00:02.5]} 57... f6 {[%clk
0:00:09]} 58. Kg2 {[%clk 0:00:02.8]} 58... Ka5 {[%clk 0:00:09.2]} 59. f3 {[%clk
0:00:03]} 59... Kb4 {[%clk 0:00:09.3]} 60. Kf2 {[%clk 0:00:01.2]} 60... Kxb3
{[%clk 0:00:09.5]} 61. Rg1 {[%clk 0:00:02.1]} 61... Kc2 {[%clk 0:00:09.4]} 62.
Re1 {[%clk 0:00:02.3]} 62... Bd3 {[%clk 0:00:08.9]} 63. Re2+ {[%clk 0:00:03.2]}
63... Bxe2 {[%clk 0:00:09.1]} 64. Kxe2 {[%clk 0:00:03.8]} 0-1

[Event "*** SCC Grand Prix: Titled Tuesday Blitz"]
[Site "Chess.com"]
[Date "2020.07.14"]
[Round "4"]
[White "Sjakkerntobi"]
[Black "Mikhail_Golubev"]
[Result "0-1"]
[WhiteElo "2358"]
[BlackElo "2589"]
[TimeControl "180+1"]
[EndTime "10:40:50 PDT"]
[Termination "Mikhail_Golubev won by checkmate"]

1. e4 {[%clk 0:03:00.9]} 1... c5 {[%clk 0:02:59.3]} 2. Nf3 {[%clk 0:03:00.4]}
2... d6 {[%clk 0:02:59.4]} 3. d4 {[%clk 0:03:00.8]} 3... Nf6 {[%clk 0:02:58.9]}
4. Nc3 {[%clk 0:03:00.3]} 4... cxd4 {[%clk 0:02:59]} 5. Qxd4 {[%clk 0:03:01.2]}
5... Bd7 {[%clk 0:02:51.7]} 6. Bg5 {[%clk 0:02:56.5]} 6... Nc6 {[%clk
0:02:51.5]} 7. Qd2 {[%clk 0:02:55.9]} 7... Qa5 {[%clk 0:02:49.5]} 8. h4 {[%clk
0:02:34]} 8... Rc8 {[%clk 0:02:43.8]} 9. O-O-O {[%clk 0:02:23.5]} 9... Nb4
{[%clk 0:02:25.5]} 10. Bxf6 {[%clk 0:01:36]} 10... gxf6 {[%clk 0:02:13.7]} 11.
Kb1 {[%clk 0:01:11.7]} 11... Rxc3 {[%clk 0:02:11.6]} 12. Qxc3 {[%clk 0:01:12.6]}
12... Qxa2+ {[%clk 0:02:08]} 13. Kc1 {[%clk 0:01:12.6]} 13... Bh6+ {[%clk
0:02:06.8]} 14. Ng5 {[%clk 0:00:56.7]} 14... Qa5 {[%clk 0:01:49.2]} 15. Kb1
{[%clk 0:00:45.1]} 15... Rf8 {[%clk 0:01:23.1]} 16. Qa3 {[%clk 0:00:22.3]} 16...
Qxa3 {[%clk 0:00:52.1]} 17. bxa3 {[%clk 0:00:23.2]} 17... Nxc2 {[%clk
0:00:52.1]} 18. Kxc2 {[%clk 0:00:21.2]} 18... Ba4+ {[%clk 0:00:50.8]} 19. Kd2
{[%clk 0:00:19.2]} 19... Bxd1 {[%clk 0:00:49]} 20. Kxd1 {[%clk 0:00:19.9]} 20...
fxg5 {[%clk 0:00:49.1]} 21. hxg5 {[%clk 0:00:20.4]} 21... Bxg5 {[%clk
0:00:49.1]} 22. Bb5+ {[%clk 0:00:20.6]} 22... Kd8 {[%clk 0:00:48.2]} 23. Rxh7
{[%clk 0:00:21.2]} 23... e6 {[%clk 0:00:45.4]} 24. Ke2 {[%clk 0:00:19.8]} 24...
Ke7 {[%clk 0:00:45.2]} 25. g3 {[%clk 0:00:19.7]} 25... Bf6 {[%clk 0:00:40.9]}
26. f4 {[%clk 0:00:19.5]} 26... a6 {[%clk 0:00:39]} 27. Bd3 {[%clk 0:00:19.3]}
27... b5 {[%clk 0:00:36.4]} 28. g4 {[%clk 0:00:19.4]} 28... Bb2 {[%clk
0:00:35.6]} 29. a4 {[%clk 0:00:19.2]} 29... bxa4 {[%clk 0:00:34.7]} 30. Bxa6
{[%clk 0:00:19.2]} 30... a3 {[%clk 0:00:31.1]} 31. Bc4 {[%clk 0:00:19.4]} 31...
Rc8 {[%clk 0:00:29.3]} 32. Bb3 {[%clk 0:00:18.1]} 32... Rc3 {[%clk 0:00:24.2]}
33. Ba2 {[%clk 0:00:18.5]} 33... Rc2+ {[%clk 0:00:21.9]} 34. Kd3 {[%clk
0:00:18.6]} 34... Rg2 {[%clk 0:00:20.8]} 35. g5 {[%clk 0:00:10.6]} 35... Ba1
{[%clk 0:00:17.5]} 36. Bb3 {[%clk 0:00:10.8]} 36... Rg3+ {[%clk 0:00:11]} 37.
Kc4 {[%clk 0:00:10.1]} 37... Bb2 {[%clk 0:00:05.1]} 38. f5 {[%clk 0:00:07.2]}
38... exf5 {[%clk 0:00:03.9]} 39. exf5 {[%clk 0:00:07.3]} 39... Rxg5 {[%clk
0:00:04]} 40. Kd5 {[%clk 0:00:04.9]} 40... Rxf5+ {[%clk 0:00:03.9]} 41. Kc6
{[%clk 0:00:05.6]} 41... Rc5+ {[%clk 0:00:03.5]} 42. Kb6 {[%clk 0:00:06.1]}
42... Ke8 {[%clk 0:00:02.8]} 43. Bxf7+ {[%clk 0:00:05.5]} 43... Kd8 {[%clk
0:00:02.2]} 44. Bb3 {[%clk 0:00:05.7]} 44... Bd4 {[%clk 0:00:02.8]} 45. Ka6
{[%clk 0:00:04.3]} 45... Rc3 {[%clk 0:00:03.3]} 46. Be6 {[%clk 0:00:04.6]} 46...
a2 {[%clk 0:00:03.5]} 47. Bxa2 {[%clk 0:00:01.7]} 47... Ra3+ {[%clk 0:00:03.2]}
48. Kb5 {[%clk 0:00:02.6]} 48... Rxa2 {[%clk 0:00:03.1]} 49. Kc6 {[%clk
0:00:03.5]} 49... Bc5 {[%clk 0:00:03.2]} 50. Rh8+ {[%clk 0:00:03.7]} 50... Ke7
{[%clk 0:00:03.2]} 51. Rh7+ {[%clk 0:00:04.6]} 51... Kf6 {[%clk 0:00:03.2]} 52.
Rh6+ {[%clk 0:00:04.2]} 52... Kf5 {[%clk 0:00:03.5]} 53. Rh8 {[%clk 0:00:04.7]}
53... Ke4 {[%clk 0:00:03.3]} 54. Re8+ {[%clk 0:00:04.5]} 54... Kd4 {[%clk
0:00:03.9]} 55. Rh8 {[%clk 0:00:04.7]} 55... Kd3 {[%clk 0:00:04.3]} 56. Rh3+
{[%clk 0:00:02.2]} 56... Kd4 {[%clk 0:00:04.3]} 57. Rh4+ {[%clk 0:00:02.2]}
57... Kc3 {[%clk 0:00:04.3]} 58. Rh3+ {[%clk 0:00:02.7]} 58... Kc4 {[%clk
0:00:04.5]} 59. Rh4+ {[%clk 0:00:03.3]} 59... Kb3 {[%clk 0:00:04.8]} 60. Rh3+
{[%clk 0:00:03.3]} 60... Kb4 {[%clk 0:00:04.6]} 61. Rh4+ {[%clk 0:00:03.9]}
61... Ka5 {[%clk 0:00:04.8]} 62. Rh5 {[%clk 0:00:03.8]} 62... Ra3 {[%clk
0:00:04.8]} 63. Kd5 {[%clk 0:00:02.8]} 63... Rb3 {[%clk 0:00:05.1]} 64. Kc4
{[%clk 0:00:03.1]} 64... Rb4+ {[%clk 0:00:05.3]} 65. Kd5 {[%clk 0:00:03.8]}
65... Kb5 {[%clk 0:00:05.6]} 66. Rh8 {[%clk 0:00:03.4]} 66... Rd4+ {[%clk
0:00:05.9]} 67. Ke6 {[%clk 0:00:04.3]} 67... Re4+ {[%clk 0:00:06.4]} 68. Kd5
{[%clk 0:00:04.8]} 68... Re5# {[%clk 0:00:06.8]} 0-1

[Event "*** SCC Grand Prix: Titled Tuesday Blitz"]
[Site "Chess.com"]
[Date "2020.07.14"]
[Round "4"]
[White "kirillshevchenko"]
[Black "pastouche06"]
[Result "1-0"]
[WhiteElo "2925"]
[BlackElo "2533"]
[TimeControl "180+1"]
[EndTime "10:40:57 PDT"]
[Termination "kirillshevchenko won by resignation"]

1. e4 {[%clk 0:03:00.9]} 1... c6 {[%clk 0:02:59.8]} 2. d4 {[%clk 0:03:00]} 2...
d5 {[%clk 0:03:00.3]} 3. exd5 {[%clk 0:03:00.7]} 3... cxd5 {[%clk 0:03:01.2]} 4.
Bd3 {[%clk 0:03:01.3]} 4... Nc6 {[%clk 0:03:00.9]} 5. c3 {[%clk 0:03:01.9]} 5...
Qc7 {[%clk 0:02:58.3]} 6. h3 {[%clk 0:03:01.7]} 6... Nf6 {[%clk 0:02:57.4]} 7.
Nf3 {[%clk 0:02:58.8]} 7... g6 {[%clk 0:02:56.7]} 8. Qc2 {[%clk 0:02:54.1]} 8...
Bg7 {[%clk 0:02:48]} 9. O-O {[%clk 0:02:53.8]} 9... O-O {[%clk 0:02:48.2]} 10.
Re1 {[%clk 0:02:54.1]} 10... Bd7 {[%clk 0:02:39.4]} 11. Nbd2 {[%clk 0:02:46]}
11... Rac8 {[%clk 0:02:36.6]} 12. a3 {[%clk 0:02:45.8]} 12... Nh5 {[%clk
0:02:22.6]} 13. Nb3 {[%clk 0:02:36]} 13... e5 {[%clk 0:02:13.2]} 14. dxe5 {[%clk
0:02:12.5]} 14... Nxe5 {[%clk 0:02:14.1]} 15. Nbd4 {[%clk 0:01:48.1]} 15... Nf4
{[%clk 0:01:51.7]} 16. Bxf4 {[%clk 0:01:43.8]} 16... Nxf3+ {[%clk 0:01:51]} 17.
Nxf3 {[%clk 0:01:44.7]} 17... Qxf4 {[%clk 0:01:51]} 18. Qc1 {[%clk 0:01:35.6]}
18... Qd6 {[%clk 0:01:36.9]} 19. Qd2 {[%clk 0:01:27.1]} 19... Rfe8 {[%clk
0:01:30.6]} 20. Be4 {[%clk 0:01:18]} 20... Bc6 {[%clk 0:01:17.9]} 21. Rad1
{[%clk 0:01:17.3]} 21... Rcd8 {[%clk 0:01:06.2]} 22. Bxd5 {[%clk 0:00:35.6]}
22... Rxe1+ {[%clk 0:01:07.1]} 23. Qxe1 {[%clk 0:00:32.3]} 23... Bxd5 {[%clk
0:01:05.2]} 24. c4 {[%clk 0:00:32.7]} 24... Qc6 {[%clk 0:00:33.6]} 25. cxd5
{[%clk 0:00:24.6]} 25... Rxd5 {[%clk 0:00:34.5]} 26. Rc1 {[%clk 0:00:25.2]}
26... Rc5 {[%clk 0:00:32.4]} 27. Rxc5 {[%clk 0:00:22.6]} 27... Qxc5 {[%clk
0:00:33.3]} 28. Qe8+ {[%clk 0:00:22.8]} 28... Bf8 {[%clk 0:00:25.7]} 29. Qe2
{[%clk 0:00:14.7]} 29... Bd6 {[%clk 0:00:21.7]} 30. h4 {[%clk 0:00:13.2]} 30...
Qc1+ {[%clk 0:00:20.8]} 31. Ne1 {[%clk 0:00:12.8]} 31... Qf4 {[%clk 0:00:18.7]}
32. g3 {[%clk 0:00:12.8]} 32... Qd4 {[%clk 0:00:19.1]} 33. Nf3 {[%clk
0:00:12.5]} 33... Qd5 {[%clk 0:00:18.8]} 34. Ng5 {[%clk 0:00:12.6]} 34... Kg7
{[%clk 0:00:15.8]} 35. Ne4 {[%clk 0:00:11.2]} 35... Be5 {[%clk 0:00:15.9]} 36.
b4 {[%clk 0:00:08.9]} 36... Qb3 {[%clk 0:00:14.6]} 37. Nc5 {[%clk 0:00:07.9]}
37... Qd5 {[%clk 0:00:14.5]} 38. Kh2 {[%clk 0:00:05.2]} 38... b6 {[%clk
0:00:13.3]} 39. Nd3 {[%clk 0:00:05]} 39... Bf6 {[%clk 0:00:13.2]} 40. Nf4 {[%clk
0:00:05.1]} 40... Qe5 {[%clk 0:00:13.1]} 41. Qf3 {[%clk 0:00:04.7]} 41... Qf5
{[%clk 0:00:12.8]} 42. a4 {[%clk 0:00:02.9]} 42... a5 {[%clk 0:00:11.7]} 43.
bxa5 {[%clk 0:00:02.9]} 43... bxa5 {[%clk 0:00:11.6]} 44. Qe2 {[%clk 0:00:02.2]}
44... Be5 {[%clk 0:00:11.5]} 45. Nd3 {[%clk 0:00:02.1]} 45... Bf6 {[%clk
0:00:10.1]} 46. Kg2 {[%clk 0:00:02.4]} 46... Qd5+ {[%clk 0:00:10]} 47. Qf3
{[%clk 0:00:02.9]} 47... Qxf3+ {[%clk 0:00:09.3]} 48. Kxf3 {[%clk 0:00:02.9]}
48... Bd4 {[%clk 0:00:09.2]} 49. Ke4 {[%clk 0:00:03.1]} 49... Bc3 {[%clk
0:00:08.4]} 50. g4 {[%clk 0:00:01.2]} 50... h6 {[%clk 0:00:07.7]} 51. f4 {[%clk
0:00:01.7]} 51... Kf6 {[%clk 0:00:07.8]} 52. Kd5 {[%clk 0:00:01.6]} 52... g5
{[%clk 0:00:06.7]} 53. fxg5+ {[%clk 0:00:01.4]} 53... hxg5 {[%clk 0:00:07.1]}
54. h5 {[%clk 0:00:02.3]} 54... Bd2 {[%clk 0:00:06.7]} 55. Nc5 {[%clk
0:00:02.3]} 55... Kg7 {[%clk 0:00:05.8]} 56. Ne4 {[%clk 0:00:02.1]} 56... Bf4
{[%clk 0:00:05.6]} 57. Nc5 {[%clk 0:00:02]} 57... f5 {[%clk 0:00:05.6]} 58. gxf5
{[%clk 0:00:01.8]} 58... Kf6 {[%clk 0:00:05.6]} 59. Ke4 {[%clk 0:00:01.9]} 59...
Bd6 {[%clk 0:00:04.1]} 60. Nd7+ {[%clk 0:00:02.3]} 60... Ke7 {[%clk 0:00:04.5]}
61. Nb6 {[%clk 0:00:03.1]} 61... Kf6 {[%clk 0:00:04.8]} 62. Nd5+ {[%clk
0:00:03.5]} 62... Kf7 {[%clk 0:00:05.2]} 63. Ne3 {[%clk 0:00:04.4]} 63... Kf6
{[%clk 0:00:05]} 64. Ng4+ {[%clk 0:00:05.3]} 64... Kg7 {[%clk 0:00:05.5]} 65.
Kd5 {[%clk 0:00:05.9]} 65... Bf4 {[%clk 0:00:05.3]} 66. Ke6 {[%clk 0:00:06.8]}
66... Bd2 {[%clk 0:00:04.8]} 67. f6+ {[%clk 0:00:07.1]} 67... Kh7 {[%clk
0:00:04.8]} 68. f7 {[%clk 0:00:07]} 68... Bb4 {[%clk 0:00:04.6]} 69. Kd7 {[%clk
0:00:07.3]} 69... Kg7 {[%clk 0:00:04.2]} 70. Ke8 {[%clk 0:00:07.9]} 70... Bc5
{[%clk 0:00:03.5]} 71. h6+ {[%clk 0:00:08.1]} 1-0

[Event "*** SCC Grand Prix: Titled Tuesday Blitz"]
[Site "Chess.com"]
[Date "2020.07.14"]
[Round "4"]
[White "chargemax23"]
[Black "Korona_91"]
[Result "0-1"]
[WhiteElo "2673"]
[BlackElo "2497"]
[TimeControl "180+1"]
[EndTime "10:40:59 PDT"]
[Termination "Korona_91 won on time"]

1. c4 {[%clk 0:03:00.9]} 1... e5 {[%clk 0:02:58.6]} 2. Nc3 {[%clk 0:03:00.3]}
2... Nc6 {[%clk 0:02:58.7]} 3. Nf3 {[%clk 0:02:59.5]} 3... g6 {[%clk 0:02:57.7]}
4. e4 {[%clk 0:02:58.4]} 4... Bg7 {[%clk 0:02:56.7]} 5. d3 {[%clk 0:02:58.2]}
5... d6 {[%clk 0:02:56.2]} 6. h3 {[%clk 0:02:58]} 6... f5 {[%clk 0:02:56.6]} 7.
g3 {[%clk 0:02:47.4]} 7... Nf6 {[%clk 0:02:46]} 8. Be3 {[%clk 0:02:46.4]} 8...
O-O {[%clk 0:02:45.1]} 9. Bg2 {[%clk 0:02:45.6]} 9... Be6 {[%clk 0:02:36.1]} 10.
Nd5 {[%clk 0:02:42.2]} 10... Qd7 {[%clk 0:02:35.9]} 11. Ng5 {[%clk 0:02:39.1]}
11... Rae8 {[%clk 0:02:28.4]} 12. Nxe6 {[%clk 0:02:38]} 12... Rxe6 {[%clk
0:02:27.4]} 13. Qd2 {[%clk 0:02:35.1]} 13... Nd4 {[%clk 0:02:23]} 14. O-O-O
{[%clk 0:02:33.5]} 14... Nxd5 {[%clk 0:02:15.4]} 15. cxd5 {[%clk 0:02:30.4]}
15... Ree8 {[%clk 0:02:15.4]} 16. Kb1 {[%clk 0:02:28.7]} 16... c5 {[%clk
0:02:14.8]} 17. f4 {[%clk 0:02:22.4]} 17... fxe4 {[%clk 0:02:06.9]} 18. dxe4
{[%clk 0:02:20.7]} 18... b5 {[%clk 0:02:02.8]} 19. h4 {[%clk 0:02:18.9]} 19...
Qg4 {[%clk 0:01:56]} 20. Qf2 {[%clk 0:02:13.4]} 20... exf4 {[%clk 0:01:53.5]}
21. gxf4 {[%clk 0:02:12.7]} 21... b4 {[%clk 0:01:49.8]} 22. Bh3 {[%clk
0:02:05.1]} 22... Qf3 {[%clk 0:01:38.4]} 23. Qxf3 {[%clk 0:01:59.4]} 23... Nxf3
{[%clk 0:01:39.3]} 24. Be6+ {[%clk 0:01:59.6]} 24... Kh8 {[%clk 0:01:39.3]} 25.
h5 {[%clk 0:01:55.4]} 25... gxh5 {[%clk 0:01:39.1]} 26. Rxh5 {[%clk 0:01:54.2]}
26... Bd4 {[%clk 0:01:39.6]} 27. Bc1 {[%clk 0:01:52.8]} 27... Bf6 {[%clk
0:01:35.9]} 28. Rdh1 {[%clk 0:01:47.9]} 28... Re7 {[%clk 0:01:35.6]} 29. Bf5
{[%clk 0:01:33.9]} 29... Rff7 {[%clk 0:01:34.7]} 30. e5 {[%clk 0:01:34]} 30...
dxe5 {[%clk 0:01:30.5]} 31. d6 {[%clk 0:01:34.4]} 31... Re8 {[%clk 0:01:17.6]}
32. Bg6 {[%clk 0:01:30.1]} 32... Ref8 {[%clk 0:01:14.2]} 33. Bxf7 {[%clk
0:01:30.2]} 33... Rxf7 {[%clk 0:01:15.1]} 34. fxe5 {[%clk 0:01:29.6]} 34... Bxe5
{[%clk 0:01:11.7]} 35. Rd1 {[%clk 0:01:15.3]} 35... Bd4 {[%clk 0:01:06.1]} 36.
Rd5 {[%clk 0:01:01]} 36... Rd7 {[%clk 0:01:04.9]} 37. Bf4 {[%clk 0:01:00.9]}
37... Kg8 {[%clk 0:01:02.4]} 38. Rf1 {[%clk 0:00:58.7]} 38... Nh4 {[%clk
0:01:02.2]} 39. Kc2 {[%clk 0:00:56.6]} 39... Ng6 {[%clk 0:01:00.9]} 40. Bg3
{[%clk 0:00:56.4]} 40... a5 {[%clk 0:00:56.3]} 41. Kd3 {[%clk 0:00:56.2]} 41...
Bxb2 {[%clk 0:00:53.2]} 42. Rxc5 {[%clk 0:00:54.9]} 42... a4 {[%clk 0:00:53.6]}
43. Kc4 {[%clk 0:00:54.4]} 43... b3 {[%clk 0:00:52.3]} 44. axb3 {[%clk
0:00:52.2]} 44... a3 {[%clk 0:00:52]} 45. Ra5 {[%clk 0:00:52.5]} 45... Kg7
{[%clk 0:00:47.7]} 46. Kd5 {[%clk 0:00:51.4]} 46... Rd8 {[%clk 0:00:45.3]} 47.
Ra7+ {[%clk 0:00:48.7]} 47... Kh6 {[%clk 0:00:43.1]} 48. d7 {[%clk 0:00:47.2]}
48... Nf8 {[%clk 0:00:40]} 49. Kc6 {[%clk 0:00:46.5]} 49... Nxd7 {[%clk
0:00:39.4]} 50. Rh1+ {[%clk 0:00:36.9]} 50... Kg6 {[%clk 0:00:36.7]} 51. Kc7
{[%clk 0:00:35.9]} 51... Nb8 {[%clk 0:00:31.1]} 52. Ra8 {[%clk 0:00:27.8]} 52...
Re8 {[%clk 0:00:25.9]} 53. Bd6 {[%clk 0:00:20]} 53... h5 {[%clk 0:00:20.3]} 54.
Bxa3 {[%clk 0:00:19.2]} 54... Be5+ {[%clk 0:00:19.5]} 55. Kb7 {[%clk 0:00:12.7]}
55... Re6 {[%clk 0:00:16.4]} 56. Rg1+ {[%clk 0:00:09.3]} 56... Kf5 {[%clk
0:00:14.6]} 57. Rf1+ {[%clk 0:00:08.7]} 57... Kg6 {[%clk 0:00:13.1]} 58. Bc5
{[%clk 0:00:06.3]} 58... Nd7 {[%clk 0:00:12.5]} 59. Bg1 {[%clk 0:00:06.1]} 59...
Nf6 {[%clk 0:00:11.4]} 60. Ra6 {[%clk 0:00:05.5]} 60... Re7+ {[%clk 0:00:09.8]}
61. Kc6 {[%clk 0:00:05.2]} 61... Re6+ {[%clk 0:00:09.4]} 62. Kb5 {[%clk
0:00:05]} 62... Re8 {[%clk 0:00:09.8]} 63. b4 {[%clk 0:00:05.5]} 63... h4 {[%clk
0:00:08.5]} 64. Ka4 {[%clk 0:00:03]} 64... Kg5 {[%clk 0:00:08.5]} 65. b5 {[%clk
0:00:02.6]} 65... h3 {[%clk 0:00:09]} 66. b6 {[%clk 0:00:02.6]} 66... Nd7 {[%clk
0:00:08.6]} 67. b7 {[%clk 0:00:02.2]} 67... Nc5+ {[%clk 0:00:08.5]} 68. Bxc5
{[%clk 0:00:01.2]} 68... Rb8 {[%clk 0:00:09]} 0-1